Workbook

Sheet Res Avg Impact
A1: As in UG-190049 (Advice No. 2019-01) | L1: Page 1 of 8
A2: =+UTC_Staff_Requested_LinearCal!A2 -> Supplemental Exhibit
A5: ="A typical residential natural gas customer using 64 therms per month would see a monthly increase of "&TEXT(D11,"$0.00")&", or "&TEXT(E11,"0.00%")&"." -> A typical residential natural gas customer using 64 therms per month would see a monthly increase of $0.29, or 0.46%.
A8: Therms | B8: Total Energy Charge | C8: City Tax - Existing | D8: Total Monthly Charge
A9: 64 | B9: =ROUND(11+A9*0.75404,2) -> 59.26 | C9: 0.0551 | D9: =ROUND(+B9*(1+C9),2) -> 62.53
A10: 64 | B10: =ROUND(11+A10*0.75404,2) -> 59.26 | C10: =+Muni.Tax!I14 -> 0.06013 | D10: =ROUND(+B10*(1+C10),2) -> 62.82
D11: =+D10-D9 -> 0.29 | E11: =+D11/D9 -> 0.004637773869 | F11: Difference
A40: This work paper pertains to the calculation of natural gas effect of City of Lake Stevens Utility Tax only. As of December 31, 2018, there were about 8,000 natural gas customers served by PSE within the city limits of Lake Stevens. PSE doesn't provide electric service in Lake Stevens.

Sheet UTC_Staff_Requested_LinearCal
A1: As in UG-190049 (Advice No. 2019-01) | G1: Page 2 of 8
A2: Supplemental Exhibit
D3: City | E3: State | F3: Adjusted | H3: State | I3: Adjusted | K3: Bad | L3: Adjusted | N3: City | O3: Adjusted | Q3: Conversion | R3: Natural Gas | S3: Effective | U3: Applicable
B4: Tax | D4: Ordinance | E4: Utility Tax | F4: Ordinance Rate | H4: Filing Fee | I4: Ordinance Rate | K4: Debts | L4: Ordinance Rate | N4: Tax | O4: Ordinance Rate | Q4: Factor | R4: Conversion | S4: City Tax Rate | U4: PSE
A5: City | B5: Code | C5: City | D5: Tax Rate | E5: Deduction | F5: Electric | G5: Gas | H5: Deduction | I5: Electric | J5: Gas | K5: Deduction | L5: Electric | M5: Gas | N5: Deduction | O5: Electric | P5: Gas | Q5: Electric | R5: Gas | S5: Electric | T5: Gas | U5: Service
A6: Lake Stevens | B6: 3109 | C6: Lake Stevens | D6: 0.06 | E6: yes | F6: =IF(E6="no",D6,((1-$L$13)*D6)) -> 0.05767596 | G6: =IF(E6="no",D6,((1-$Q$13)*D6)) -> 0.0576888 | H6: no | I6: =IF(H6="no",F6,((1-$L$12)*F6)) -> 0.05767596 | J6: =IF(H6="no",G6,((1-$Q$12)*G6)) -> 0.0576888 | K6: yes | L6: =IF(K6="yes",I6,I6/(1-$L$11)) -> 0.05767596 | M6: =IF(K6="yes",J6,J6/(1-$Q$11)) -> 0.0576888 | N6: yes | O6: =IF(N6="no",L6,((L6/(1+D6)))) -> 0.05441128302 | P6: =IF(N6="no",M6,((M6/(1+D6)))) -> 0.05442339623 | Q6: =+O6/$N$16 -> 0.05672178835 | R6: =P6/$S$16 -> 0.05672176202 | S6: =Q6/(1-Q6) -> 0.06013261797 | T6: 0.06013258839 | U6: Gas
A9: The linear calculation of the effective city tax rate in this tab is prepared at the request of UTC Staff. However, this linear calculation is incomplete and inaccurate because it does not reflect the circular nature of the collecting city tax through PSE and PSE's additional taxes, fees, and expenses because of the city tax collection. Whereas the circular calculation in the Muni.Tax tab addresses the interaction between the addition tax revenue and the additional payables and allows many cycles of calculation until the change becomes insignificant. | L9: Electric | Q9: Gas
L10: Actual Rate | M10: With Bad Debts | N10: w/o Bad Debts | Q10: Actual Rate | R10: With Bad Debts | S10: w/o Bad Debts
J11: Bad Debts | L11: =+F30 -> 0.007157 | M11: =+L11 -> 0.007157 | Q11: =+M30 -> 0.00514 | R11: =+Q11 -> 0.00514
J12: Annual Filing Fee | L12: =+F31 -> 0.002 | M12: =+L12-L12*$L$11 -> 0.001985686 | N12: =+L12 -> 0.002 | Q12: =+M31 -> 0.002 | R12: =+Q12-Q12*$Q$11 -> 0.00198972 | S12: =+Q12 -> 0.002
J13: State Utility Tax | L13: =+E32 -> 0.038734 | M13: =+F32 -> 0.038457 | N13: =+L13 -> 0.038734 | Q13: =+L32 -> 0.03852 | R13: =+M32 -> 0.038322 | S13: =+Q13 -> 0.03852
J14: Sum | L14: =SUM(L11:L13) -> 0.047891 | M14: =SUM(M11:M13) -> 0.047599686 | N14: =SUM(N11:N13) -> 0.040734 | Q14: =SUM(Q11:Q13) -> 0.04566 | R14: =SUM(R11:R13) -> 0.04545172 | S14: =SUM(S11:S13) -> 0.04052
J16: Conversion Factor = 1 - Sum Above | L16: =1-L14 -> 0.952109 | M16: =1-M14 -> 0.952400314 | N16: =1-N14 -> 0.959266 | Q16: =1-Q14 -> 0.95434 | R16: =1-R14 -> 0.95454828 | S16: =1-S14 -> 0.95948
B18: Electric Model Tax Reform 2017 GRC (SETTLEMENT).xlsx_KJB-3 | I18: Gas Model Tax Reform 2017 GRC (SETTLEMENT).xlsx]Gas Detail Pages
B22: Page 3.04 | L22: Page 3.05
B23: PUGET SOUND ENERGY-ELECTRIC | I23: PUGET SOUND ENERGY-GAS
B24: CONVERSION FACTOR - ELECTRIC | I24: CONVERSION FACTOR - GAS
B25: FOR THE TWELVE MONTHS ENDED SEPTEMBER 30, 2016 | I25: FOR THE TWELVE MONTHS ENDED SEPTEMBER 30, 2016
B27: LINE | I27: LINE
B28: NO. | C28: DESCRIPTION | F28: RATE | I28: NO. | J28: DESCRIPTION | K28: BASE | L28: RATE | M28: AMOUNT
B30: 1 | C30: BAD DEBTS | F30: =+'3.04 E'!E14 -> 0.007157 | I30: 1 | J30: BAD DEBTS | M30: ='3.05 G'!E13 -> 0.00514
B31: 2 | C31: ANNUAL FILING FEE | F31: =+'3.04 E'!E15 -> 0.002 | I31: 2 | J31: ANNUAL FILING FEE | M31: ='3.05 G'!E14 -> 0.002
B32: 3 | C32: STATE UTILITY TAX ( 3.873% - ( LINE 1 * 3.873% ) ) | E32: =+'3.04 E'!D16 -> 0.038734 | F32: =+'3.04 E'!E16 -> 0.038457 | I32: 3 | J32: STATE UTILITY TAX ( 3.852% - ( LINE 1 * 3.852% ) ) | L32: ='3.05 G'!D15 -> 0.03852 | M32: ='3.05 G'!E15 -> 0.038322
B33: 4 | I33: 4
B34: 5 | C34: SUM OF TAXES OTHER | F34: =+'3.04 E'!E18 -> 0.047614 | I34: 5 | J34: SUM OF TAXES OTHER | M34: ='3.05 G'!E17 -> 0.045462
B35: 6 | I35: 6
B36: 7 | C36: CONVERSION FACTOR EXCLUDING FEDERAL INCOME TAX ( 1 - LINE 5 ) | F36: ='3.04 E'!E20 -> 0.952386 | I36: 7 | J36: CONVERSION FACTOR EXCLUDING FEDERAL INCOME TAX ( 1 - LINE 5) | M36: ='3.05 G'!E19 -> 0.954538
B37: 8 | C37: FEDERAL INCOME TAX ( LINE 7 * 35% ) | E37: ='3.04 E'!D21 -> 0.21 | F37: ='3.04 E'!E21 -> 0.200001 | I37: 8 | J37: FEDERAL INCOME TAX ( LINE 7 * 35%) | L37: ='3.05 G'!D20 -> 0.21 | M37: ='3.05 G'!E20 -> 0.200453
B38: 9 | C38: CONVERSION FACTOR INCL FEDERAL INCOME TAX ( LINE 7 - LINE 8 ) | F38: ='3.04 E'!E22 -> 0.752385 | I38: 9 | J38: CONVERSION FACTOR | M38: ='3.05 G'!E21 -> 0.754085

Sheet Muni.Tax
F1: Energy | G1: G | H1: Ordinance City Tax Rate = | K1: 0.06
A3: Total Bill Excluding City Tax and City Tax Related Additional Revenue | D3: 10000000 | F3: Calculated Grossed-up City Tax Rate = | I3: 0.06013327494
A4: City Tax and City Tax Related Additional Revenue | D4: =ROUND(D3*I14,2) -> 601300
A5: Gross Taxable Revenue | D5: =D3+D4 -> 10601300 | H5: Electric State Utility Tax Rate = | I5: =+'Pub Util Tax'!D3 -> 0.038734
H6: Natural Gas State Utility Tax Rate = | I6: =+'Pub Util Tax'!D4 -> 0.03852
A7: Allowed City Tax Deductions | H7: State Utility Tax Rate w/ Loss Adjustment = | I7: =IF(G1="E",($I$5-($I$5*$I$12)),($I$6-($I$6*$I$11))) -> 0.0383220072
A8: Credit Losses | C8: y | D8: =IF(C8="Y",D5*I10,0) -> 54490.682 | H8: State Filing Fee Rate = | I8: =+'Annual Filing Fee'!A1 -> 0.002
A9: State Utility Tax | C9: y | D9: =IF(C9="Y",D5*I7,0) -> 406263.0949 | H9: State Filing Fee w/ Loss Adjustment = | I9: =$I$8-($I$8*$I$10) -> 0.00198972
A10: State Filing Fee | C10: n | D10: =IF(C10="Y",D5*I8,0) -> 0 | H10: Bad Debts Rate = | I10: =+SUMIF($H$11:$H$12,G1,I11:I12) -> 0.00514
A11: City Tax | C11: y | D11: =IF(C11="Y",D4-D4*I7-D4*I8-D4*I10,0) -> 573963.6951 | H11: G | I11: =+'3.05 G'!E13 -> 0.00514
A12: Total Deductions | D12: =SUM(D8:D11) -> 1034717.472 | H12: E | I12: =+'3.04 E'!E14 -> 0.007157
A14: Net City Tax Taxable Revenue | D14: =D5-D12 -> 9566582.528 | H14: Grossed-up City Tax Rate to Use in CLX = | I14: =ROUND(I3,5) -> 0.06013
A15: City Tax Payable | D15: =D14*K1 -> 573994.9517
A16: Additional State Utility Tax due to City Tax | D16: =D4*I7 -> 23043.02293
A17: Additional State Filing Fee due to City Tax | D17: =D4*I8 -> 1202.6
A18: Additional Credit Losses due to City Tax | D18: =D4*I10 -> 3090.682
G19: Y
A20: Total Cost due to City Tax | D20: =SUM(D15:D18) -> 601331.2566 | F20: =ABS(IF(ROUND(F25,0)<>0,F25,0))+IF(ABS(ROUND(D22,0)-ABS(ROUND(F25,0)))=0,ABS(D22)+ABS(F25),0)+ABS(IF(ABS(D22)<>0,D22,0)) -> 62.51321872 | G20: N
A22: Difference between collected and paid | D22: =+D4-D20 -> -31.25660936 | E22: =+D22/D4 -> -5.198172187e-05 | F22: [Hit "Refresh" button until F25 and D22 are near zero]
F23: [Manual adjustment of I3 is necessary in some cases]
A25: Difference between City Tax Deduction and City Tax Paid | F25: =IF(C11="Y",D11-D15,0) -> -31.25660936
A27: Difference in collection resulting from using SAP rate = | F27: =D20-(D3*I14) -> 31.25660936
A30: =+'Res Avg Impact'!$A$40 -> This work paper pertains to the calculation of natural gas effect of City of Lake Stevens Utility Tax only. As of December 31, 2018, there were about 8,000 natural gas customers served by PSE within the city limits of Lake Stevens. PSE doesn't provide electric service in Lake Stevens.
A33: As in UG-190049 (Advice No. 2019-01) | K33: Page 3 of 8
A34: Supplemental Work Paper Supporting the Calculation of the Total Effect of Lake Stevens Levy City Utility Tax

Sheet 3.04 E
A1: As in UG-190049 (Advice No. 2019-01) | E1: Page 4 of 8
A2: =+'Res Avg Impact'!A2:L2 -> Supplemental Exhibit
E5: Page 3.04
B6: PUGET SOUND ENERGY-ELECTRIC
B7: CONVERSION FACTOR - ELECTRIC
B8: FOR THE TWELVE MONTHS ENDED SEPTEMBER 30, 2016
A11: LINE
A12: NO. | B12: DESCRIPTION | E12: RATE
A14: 1 | B14: BAD DEBTS | E14: 0.007157
A15: 2 | B15: ANNUAL FILING FEE | E15: ='Annual Filing Fee'!A1 -> 0.002
A16: 3 | B16: ="STATE UTILITY TAX - NET OF BAD DEBTS ( "&D16*100&"% - ( LINE 1 * "&D16*100&"%) )" -> STATE UTILITY TAX - NET OF BAD DEBTS ( 3.8734% - ( LINE 1 * 3.8734%) ) | D16: ='Pub Util Tax'!D3 -> 0.038734 | E16: =ROUND(D16-(D16*E14),6) -> 0.038457
A17: 4
A18: 5 | B18: SUM OF TAXES OTHER | E18: =ROUND(SUM(E14:E16),6) -> 0.047614
A19: 6
A20: 7 | B20: CONVERSION FACTOR EXCLUDING FEDERAL INCOME TAX ( 1 - LINE 5) | E20: =ROUND(1-E18,6) -> 0.952386
A21: 8 | B21: FEDERAL INCOME TAX ( LINE 7 * 21%) | D21: 0.21 | E21: =ROUND((E20)*D21,6) -> 0.200001
A22: 9 | B22: CONVERSION FACTOR INCL FEDERAL INCOME TAX ( LINE 5 + LINE 8 ) | E22: =ROUND(1-E21-E18,6) -> 0.752385
A24: =+'Res Avg Impact'!$A$40 -> This work paper pertains to the calculation of natural gas effect of City of Lake Stevens Utility Tax only. As of December 31, 2018, there were about 8,000 natural gas customers served by PSE within the city limits of Lake Stevens. PSE doesn't provide electric service in Lake Stevens.

Sheet 3.05 G
A1: As in UG-190049 (Advice No. 2019-01) | E1: Page 5 of 8
A2: =+'Res Avg Impact'!A2:L2 -> Supplemental Exhibit
E4: Page 3.05
B5: PUGET SOUND ENERGY-GAS
B6: CONVERSION FACTOR - GAS
B7: =+'3.04 E'!B8:E8 -> FOR THE TWELVE MONTHS ENDED SEPTEMBER 30, 2016
A10: LINE
A11: NO. | B11: DESCRIPTION | E11: RATE
A13: 1 | B13: BAD DEBTS | E13: 0.00514
A14: 2 | B14: ANNUAL FILING FEE | E14: ='Annual Filing Fee'!A1 -> 0.002
A15: 3 | B15: ="STATE UTILITY TAX - NET OF BAD DEBTS ( "&D15*100&"% - ( LINE 1 * "&D15*100&"%) )" -> STATE UTILITY TAX - NET OF BAD DEBTS ( 3.852% - ( LINE 1 * 3.852%) ) | D15: ='Pub Util Tax'!$D$4 -> 0.03852 | E15: =ROUND(D15-(D15*E13),6) -> 0.038322
A16: 4
A17: 5 | B17: SUM OF TAXES OTHER | E17: =ROUND(SUM(E13:E15),6) -> 0.045462
A18: 6
A19: 7 | B19: CONVERSION FACTOR EXCLUDING FEDERAL INCOME TAX ( 1 - LINE 5) | E19: =ROUND(1-E17,6) -> 0.954538
A20: 8 | B20: FEDERAL INCOME TAX ( LINE 7 * 21%) | D20: 0.21 | E20: =ROUND((E19)*D20,6) -> 0.200453
A21: 9 | B21: CONVERSION FACTOR INCL FEDERAL INCOME TAX ( LINE 5 + LINE 8 ) | E21: =ROUND(1-E20-E17,6) -> 0.754085
A24: =+'Res Avg Impact'!$A$40 -> This work paper pertains to the calculation of natural gas effect of City of Lake Stevens Utility Tax only. As of December 31, 2018, there were about 8,000 natural gas customers served by PSE within the city limits of Lake Stevens. PSE doesn't provide electric service in Lake Stevens.

Sheet Annual Filing Fee
A1: 0.002 | C1: As in UG-190049 (Advice No. 2019-01) | G1: Page 6 of 8
A2: RCW 80.24.010 | C2: =+UTC_Staff_Requested_LinearCal!$A$2 -> Supplemental Exhibit
A4: Companies to file reports of gross revenue and pay fees — Delinquent fee payments.
A5: Every public service company subject to regulation by the commission shall, on or before the
A6: date specified by the commission for filing annual reports under RCW 80.04.080, file with the
A7: commission a statement on oath showing its gross operating revenue from intrastate
A8: operations for the preceding calendar year or portion thereof and pay to the commission a
A9: fee equal to one-tenth of one percent of the first fifty thousand dollars of gross operating
A10: revenue, plus two-tenths of one percent of any gross operating revenue in excess of fifty
A11: thousand dollars: PROVIDED, That the commission may, by rule, set minimum fees that do
A12: not exceed the cost of collecting the fees. The commission may by rule waive any or all of
A13: the minimum fee established pursuant to this section.
A15: The percentage rates of gross operating revenue to be paid in any year may be decreased
A16: by the commission for any class of companies subject to the payment of such fees, by
A17: general order entered before March 1st of such year, and for such purpose such companies
A18: shall be classified as follows:
A20: Electrical, gas, water, telecommunications, and irrigation companies shall constitute class
A21: one. Every other company subject to regulation by the commission, for which regulatory fees
A22: are not otherwise fixed by law shall pay fees as herein provided and shall constitute
A23: additional classes according to kinds of businesses engaged in.
A25: Any payment of the fee imposed by this section made after its due date shall include a
A26: late fee of two percent of the amount due. Delinquent fees shall accrue interest at the rate
A27: of one percent per month.
A29: [2003 c 296 § 1; 1994 c 83 § 1; 1990 c 48 § 1; 1985 c 450 § 14; 1961 c 14 § 80.24.010. Prior: 1955
A30: c 125 § 2; prior: 1939 c 123 § 1, part; 1937 c 158 § 1, part; 1929 c 107 § 1, part; 1923 c 107 § 1, part;
A31: 1921 c 113 § 1, part; RRS § 10417, part.]
A33: Notes:
A34: Severability -- Legislative review -- 1985 c 450: See RCW 80.36.900 and 80.36.901.
A37: http://apps.leg.wa.gov/rcw/default.aspx?cite=80.24.010
A39: =+'Res Avg Impact'!$A$40 -> This work paper pertains to the calculation of natural gas effect of City of Lake Stevens Utility Tax only. As of December 31, 2018, there were about 8,000 natural gas customers served by PSE within the city limits of Lake Stevens. PSE doesn't provide electric service in Lake Stevens.

Sheet Pub Util Tax
A1: State Utility Tax | C1: Link updated as of 2/14/2019 | I1: As in UG-190049 (Advice No. 2019-01) | O1: Page 7 of 8
A2: https://dor.wa.gov/find-taxes-rates/other-taxes/public-utility-tax | I2: Supplemental Work Paper Supporting the Calculation of the Total Effect of Lake Stevens Levy City Utility Tax
C3: Electric | D3: 0.038734
C4: Gas | D4: 0.03852
A44: =+'Res Avg Impact'!$A$40 -> This work paper pertains to the calculation of natural gas effect of City of Lake Stevens Utility Tax only. As of December 31, 2018, there were about 8,000 natural gas customers served by PSE within the city limits of Lake Stevens. PSE doesn't provide electric service in Lake Stevens.

Sheet Lake Stevens Ordinance No. 1037
A1: As in UG-190049 (Advice No. 2019-01) | C1: Page 8 of 8
A2: =+UTC_Staff_Requested_LinearCal!$A$2 -> Supplemental Exhibit
A3: From: Cheesman, Melissa (UTC) [mailto:melissa.cheesman@utc.wa.gov]
A4: Sent: Wednesday, February 20, 2019 8:36 AM
A5: To: Cass, Mei
A6: Subject: UG-190049 Update on Deductions from Gross Income from the City of Lake Stevens
A7: Importance: High
A9: Mei,
A11: The City got back to me and it appears that state utility tax can also be deducted from gross income. Here is what the city attorney wrote (Yes – can be deducted from gross income, No – cannot be deducted from gross income):
A13: The language of Section 3.08.040 A. identified by Melissa is intended to exclude from gross income monies received by the taxpayer (in this case the utility) in payment of federal, state or local excise taxes (i.e. the Lake Stevens Utility Tax) added into the taxpayer’s customer billings.
A15: Yes – Revenues received by the taxpayer from its billing to the customer of State excise or utility taxes the taxpayer will pay to the state or local government. The amount billed for these excise taxes need to be separately listed on the customer’s bill to be excluded from gross income, so it is clear what amount of money comes from revenue from the commodity provided verses revenue for the payment of excise taxes.
A17: No – Fees paid to Washington State Agencies as a cost of doing business are not referenced in the language of 3.08.040 A.
A19: Call if you want to discuss.
A21: Sincerely,
A24: Melissa Cheesman, MPAC
A25: Regulatory Analyst 3
A26: Interagency Committee of State Employed Women Representative
A27: Utilities and Transportation Commission
A28: 360-664-1251
A31: This e-mail states the informal opinions of commission staff, offered as technical assistance, and are not intended as legal advice. We reserve the right to amend these opinions should circumstances change or additional information be brought to our attention. Staff's opinions are not binding on the commission.
A34: Utilities and Transportation Commission
A35: Respect. Professionalism. Integrity. Accountability.
A36: “Be the change you wish to see in the world."
A37: - Mahatma Gandhi
A39: CAUTION: This email originated from outside of the organization. Exercise extra caution when responding, opening attachments, and clicking links.
A42: =+'Res Avg Impact'!$A$40 -> This work paper pertains to the calculation of natural gas effect of City of Lake Stevens Utility Tax only. As of December 31, 2018, there were about 8,000 natural gas customers served by PSE within the city limits of Lake Stevens. PSE doesn't provide electric service in Lake Stevens.
